[Event "GER-ch Youth U10 2019"]
[Site "Willingen"]
[Date "2019.06.10"]
[Round "4.9"]
[White "Ruddat, Jarne"]
[Black "Fruth, David"]
[Result "1-0"]
[ECO "C42"]
[WhiteElo "1350"]
[BlackElo "1423"]
[Annotator "NA"]
[PlyCount "40"]
[EventDate "2019.06.07"]
[EventType "swiss"]
[EventRounds "11"]
[EventCountry "GER"]
[SourceTitle "playchess.com"]
[Source "ChessBase"]
[SourceQuality "1"]
[TimeControl "40/4500+30:900+30"]

1. e4 {[%emt 0:00:00]} e5 {[%emt 0:00:00]} 2. Nf3 {[%emt 0:00:00]} Nf6 {[%emt 0:00:00]} 3. Nc3 {[%emt 0:00:00]} Bb4 {[%emt 0:00:04]} 4. Nxe5 {[%emt 0:02:08]} O-O {[%emt 0:00:50]} 5. Be2 {[%emt 0:02:04]} d6 {[%emt 0:03:22]} 6. Nf3 {[%emt 0:01:32]} Bxc3 {[%emt 0:00:25]} 7. dxc3 {[%emt 0:01:21]} Nxe4 {[%emt 0:00:10]} 8. O-O {[%emt 0:00:46]} Nc6 {[%emt 0:00:22]} 9. Bd3 {[%emt 0:03:31]} Nf6 {[%emt 0:00:46]} 10. Be3 {[%emt 0:03:12]} Bg4 {[%emt 0:00:13]} 11. h3 {[%emt 0:02:44]} Bxf3 {[%emt 0:00:20]} 12. Qxf3 {[%emt 0:00:08]} h6 {[%emt 0:02:00]} 13. Rad1 {[%emt 0:02:22]} Qc8 {[%emt 0:01:52]} 14. Bxh6 {[%emt 0:08:08]} Qe6 {[%emt 0:01:56]} 15. Bf4 {[%emt 0:04:08]} Qxa2 {[%emt 0:04:35]} 16. Ra1 {[%emt 0:01:16]} Qxb2 {[%emt 0:00:43]} 17. Rfb1 {[%emt 0:00:06]} Nd4 {[%emt 0:01:52]} 18. Rxb2 {[%emt 0:03:53]} Nxf3+ {[%emt 0:00:12]} 19. gxf3 {[%emt 0:00:11]} Nd5 {[%emt 0:00:40]} 20. Bg3 {[%emt 0:00:14]} Nb6 {[%emt 0:01:13] normal} 1-0

[Event "GER-ch Youth U10 2019"]
[Site "Willingen"]
[Date "2019.06.11"]
[Round "5.1"]
[White "Besou, Hussain"]
[Black "Grabs, Peter"]
[Result "0-1"]
[ECO "A20"]
[WhiteElo "1785"]
[BlackElo "1575"]
[Annotator "NA"]
[PlyCount "101"]
[EventDate "2019.06.07"]
[EventType "swiss"]
[EventRounds "11"]
[EventCountry "GER"]
[SourceTitle "playchess.com"]
[Source "ChessBase"]
[SourceQuality "1"]
[TimeControl "40/4500+30:900+30"]

1. c4 {[%emt 0:00:00]} e5 {[%emt 0:00:00]} 2. a3 {[%emt 0:00:00]} Nf6 {[%emt 0:00:00]} 3. Nc3 {[%emt 0:00:00]} Bc5 {[%emt 0:02:09]} 4. b4 {[%emt 0:00:07]} Be7 {[%emt 0:00:18]} 5. g3 {[%emt 0:01:03]} O-O {[%emt 0:00:28]} 6. Bg2 {[%emt 0:00:06]} c6 {[%emt 0:00:12]} 7. Qb3 d6 {[%emt 0:00:57]} 8. d3 {[%emt 0:01:04]} Be6 {[%emt 0:00:29]} 9. Nf3 {[%emt 0:03:55]} Nbd7 {[%emt 0:00:51]} 10. e4 {[%emt 0:00:34]} h6 {[%emt 0:01:56]} 11. a4 {[%emt 0:01:02]} a5 {[%emt 0:01:08]} 12. O-O axb4 {[%emt 0:04:13]} 13. Qxb4 {[%emt 0:06:33]} d5 {[%emt 0:05:54]} 14. Qb1 {[%emt 0:17:54]} dxc4 {[%emt 0:02:09]} 15. dxc4 {[%emt 0:00:33]} Bxc4 {[%emt 0:00:56]} 16. Rd1 {[%emt 0:00:07]} Qc7 {[%emt 0:00:19]} 17. Nd2 {[%emt 0:02:32]} Be6 {[%emt 0:03:02]} 18. h3 {[%emt 0:00:49]} Bc5 {[%emt 0:06:57]} 19. Ba3 {[%emt 0:01:10]} Bxa3 {[%emt 0:05:29]} 20. Rxa3 {[%emt 0:00:47]} Rfd8 {[%emt 0:05:28]} 21. Qc2 {[%emt 0:01:56]} Qa5 {[%emt 0:04:35]} 22. Raa1 {[%emt 0:03:37]} Nc5 {[%emt 0:02:47]} 23. Bf1 {[%emt 0:12:30]} Rd7 {[%emt 0:01:53]} 24. Nc4 {[%emt 0:03:47]} Bxc4 {[%emt 0:01:10]} 25. Bxc4 {[%emt 0:00:20]} Rad8 {[%emt 0:00:47]} 26. f3 {[%emt 0:04:43]} Rxd1+ {[%emt 0:01:35]} 27. Rxd1 {[%emt 0:01:23]} Rxd1+ {[%emt 0:00:17]} 28. Nxd1 {[%emt 0:00:13]} Qxa4 {[%emt 0:01:19]} 29. Qxa4 {[%emt 0:00:10]} Nxa4 {[%emt 0:00:06]} 30. Kf2 {[%emt 0:00:11]} Kf8 {[%emt 0:01:27]} 31. g4 {[%emt 0:01:53]} Ke7 {[%emt 0:01:01]} 32. Ke2 {[%emt 0:00:52]} Nd7 {[%emt 0:00:46]} 33. Ne3 {[%emt 0:00:37]} g6 {[%emt 0:00:23]} 34. Kd2 {[%emt 0:00:18]} b5 {[%emt 0:00:17]} 35. Ba2 {[%emt 0:00:20]} Ndb6 {[%emt 0:00:28]} 36. Kc2 {[%emt 0:00:37]} Nc5 {[%emt 0:02:47]} 37. h4 {[%emt 0:00:35]} Ne6 {[%emt 0:00:25]} 38. Kc3 {[%emt 0:00:28]} c5 {[%emt 0:01:20]} 39. Bb3 {[%emt 0:00:48]} Nd4 {[%emt 0:02:23]} 40. Bd1 {[%emt 0:00:22]} Kd6 {[%emt 0:00:59]} 41. h5 {[%emt 0:15:23]} b4+ {[%emt 0:15:48]} 42. Kd3 {[%emt 0:00:50]} Kc6 {[%emt 0:00:23]} 43. g5 {[%emt 0:00:10]} gxh5 {[%emt 0:05:26]} 44. gxh6 {[%emt 0:00:17]} Ne6 {[%emt 0:00:19]} 45. Nd5 {[%emt 0:01:09]} c4+ {[%emt 0:01:00]} 46. Kd2 {[%emt 0:00:39]} Ng5 {[%emt 0:02:21]} 47. Nf6 {[%emt 0:00:44]} h4 {[%emt 0:01:23]} 48. Be2 {[%emt 0:02:45]} b3 {[%emt 0:02:04]} 49. h7 {[%emt 0:04:53]} Nxh7 {[%emt 0:00:14]} 50. Nxh7 {[%emt 0:00:08]} h3 {[%emt 0:00:19]} 51. Bf1 {[%emt 0:01:30] normal} 0-1

[Event "GER-ch Youth U10 2019"]
[Site "Willingen"]
[Date "2019.06.11"]
[Round "5.2"]
[White "Helms, Finn"]
[Black "Sommer, Justus"]
[Result "1-0"]
[ECO "D00"]
[WhiteElo "1773"]
[BlackElo "1684"]
[Annotator "NA"]
[PlyCount "82"]
[EventDate "2019.06.07"]
[EventType "swiss"]
[EventRounds "11"]
[EventCountry "GER"]
[SourceTitle "playchess.com"]
[Source "ChessBase"]
[SourceQuality "1"]
[TimeControl "40/4500+30:900+30"]

1. d4 {[%emt 0:00:00]} d5 {[%emt 0:00:08]} 2. Bf4 {[%emt 0:00:00]} Nf6 {[%emt 0:00:17]} 3. e3 {[%emt 0:00:00]} e6 {[%emt 0:00:18]} 4. Nf3 {[%emt 0:00:09]} c5 {[%emt 0:00:27]} 5. c3 {[%emt 0:00:08]} Nc6 {[%emt 0:00:33]} 6. Nbd2 {[%emt 0:00:17]} Bd6 {[%emt 0:00:13]} 7. Bg3 {[%emt 0:00:12]} O-O {[%emt 0:00:29]} 8. Bd3 {[%emt 0:00:16]} Qe7 {[%emt 0:01:11]} 9. Ne5 {[%emt 0:00:14]} Nd7 {[%emt 0:00:48]} 10. Nxd7 {[%emt 0:00:38]} Bxd7 {[%emt 0:00:50]} 11. Bxd6 {[%emt 0:00:14]} Qxd6 {[%emt 0:00:15]} 12. dxc5 {[%emt 0:00:10]} Qxc5 {[%emt 0:00:41]} 13. Bxh7+ {[%emt 0:00:11]} Kxh7 {[%emt 0:01:45]} 14. Qh5+ {[%emt 0:00:07]} Kg8 {[%emt 0:00:13]} 15. Ne4 {[%emt 0:00:05]} g6 {[%emt 0:05:36]} 16. Nxc5 {[%emt 0:00:18]} gxh5 {[%emt 0:00:07]} 17. Nxd7 {[%emt 0:00:04]} Rfd8 {[%emt 0:00:21]} 18. Nf6+ {[%emt 0:00:06]} Kf8 {[%emt 0:00:07]} 19. Nxh5 {[%emt 0:00:07]} Ne5 {[%emt 0:00:34]} 20. Ke2 {[%emt 0:00:35]} Ke7 {[%emt 0:00:20]} 21. Nf4 {[%emt 0:00:24]} Rd6 {[%emt 0:00:38]} 22. Nd3 {[%emt 0:00:53]} Nc4 {[%emt 0:00:36]} 23. b3 {[%emt 0:01:24]} Nb6 {[%emt 0:00:52]} 24. h4 {[%emt 0:00:47]} Rc6 {[%emt 0:00:58]} 25. Rac1 {[%emt 0:01:58]} Rac8 {[%emt 0:00:17]} 26. Kd2 {[%emt 0:00:11]} Nd7 {[%emt 0:02:26]} 27. f3 {[%emt 0:01:56]} e5 {[%emt 0:02:26]} 28. g4 {[%emt 0:03:32]} Rd6 {[%emt 0:02:27]} 29. Nb2 {[%emt 0:12:43]} Rf6 {[%emt 0:04:04]} 30. Ke2 {[%emt 0:00:41]} Ra6 {[%emt 0:00:17]} 31. a4 {[%emt 0:01:19]} Rb6 {[%emt 0:00:16]} 32. b4 {[%emt 0:00:17]} Rbc6 {[%emt 0:00:04]} 33. Rhd1 {[%emt 0:02:22]} Ke6 {[%emt 0:02:32]} 34. Rd3 {[%emt 0:04:26]} Nf6 {[%emt 0:03:22]} 35. g5 {[%emt 0:00:52]} Nh5 {[%emt 0:00:53]} 36. Rcd1 {[%emt 0:00:43]} Rxc3 {[%emt 0:03:20]} 37. Rxd5 {[%emt 0:00:20]} Rb3 {[%emt 0:02:08]} 38. Rd6+ {[%emt 0:01:23]} Kf5 {[%emt 0:02:21]} 39. Nd3 {[%emt 0:01:42]} Rc2+ {[%emt 0:01:47]} 40. Rd2 {[%emt 0:06:13]} Ng3+ {[%emt 0:01:38]} 41. Kd1 {[%emt 0:15:18]} Rxd2+ {[%emt 0:25:15] normal} 1-0

[Event "GER-ch Youth U10 2019"]
[Site "Willingen"]
[Date "2019.06.11"]
[Round "5.4"]
[White "Navarro Jahnke, Leo"]
[Black "Dorendorf, Mika"]
[Result "1-0"]
[ECO "A20"]
[WhiteElo "1334"]
[BlackElo "1398"]
[Annotator "NA"]
[PlyCount "44"]
[EventDate "2019.06.07"]
[EventType "swiss"]
[EventRounds "11"]
[EventCountry "GER"]
[SourceTitle "playchess.com"]
[Source "ChessBase"]
[SourceQuality "1"]
[TimeControl "40/4500+30:900+30"]

1. c4 {[%emt 0:00:00]} e5 {[%emt 0:00:00]} 2. Nf3 {[%emt 0:00:00]} Nc6 {[%emt 0:00:41]} 3. d4 {[%emt 0:00:00]} exd4 {[%emt 0:00:34]} 4. Nxd4 {[%emt 0:00:00]} Bc5 {[%emt 0:02:20]} 5. e3 Nge7 {[%emt 0:03:05]} 6. b3 {[%emt 0:01:25]} O-O {[%emt 0:01:59]} 7. Be2 {[%emt 0:00:39]} d6 {[%emt 0:02:30]} 8. Bb2 {[%emt 0:01:03]} Bd7 {[%emt 0:07:17]} 9. O-O {[%emt 0:01:01]} Ng6 {[%emt 0:06:28]} 10. Nd2 {[%emt 0:13:04]} Nxd4 {[%emt 0:04:00]} 11. exd4 {[%emt 0:00:30]} Bb6 {[%emt 0:00:41]} 12. a4 {[%emt 0:00:57]} a5 {[%emt 0:00:29]} 13. Nf3 {[%emt 0:00:44]} Nf4 {[%emt 0:01:14]} 14. Re1 {[%emt 0:00:19]} Nxe2+ {[%emt 0:00:54]} 15. Qxe2 {[%emt 0:00:18]} Re8 {[%emt 0:00:29]} 16. Qd3 {[%emt 0:00:05]} Qc8 {[%emt 0:00:54]} 17. Rad1 {[%emt 0:00:40]} Bf5 {[%emt 0:00:25]} 18. Rxe8+ {[%emt 0:00:01]} Qxe8 {[%emt 0:00:16]} 19. Qxf5 {[%emt 0:00:30]} g6 {[%emt 0:00:46]} 20. Qd3 {[%emt 0:01:52]} c5 {[%emt 0:01:57]} 21. d5 {[%emt 0:01:19]} Bd8 {[%emt 0:02:24]} 22. Qc3 {[%emt 0:00:54] normal} f6 {[%emt 0:00:31]} 1-0

[Event "GER-ch Youth U10 2019"]
[Site "Willingen"]
[Date "2019.06.11"]
[Round "5.5"]
[White "Fietz, Nils"]
[Black "Freude, Paul"]
[Result "1/2-1/2"]
[ECO "B22"]
[WhiteElo "1677"]
[BlackElo "1713"]
[Annotator "NA"]
[PlyCount "115"]
[EventDate "2019.06.07"]
[EventType "swiss"]
[EventRounds "11"]
[EventCountry "GER"]
[SourceTitle "playchess.com"]
[Source "ChessBase"]
[SourceQuality "1"]
[TimeControl "40/4500+30:900+30"]

1. e4 {[%emt 0:00:00]} c5 {[%emt 0:00:00]} 2. c3 {[%emt 0:00:00]} Nf6 {[%emt 0:00:00]} 3. e5 {[%emt 0:00:00]} Nd5 {[%emt 0:00:00]} 4. d4 {[%emt 0:00:00]} cxd4 {[%emt 0:00:19]} 5. cxd4 {[%emt 0:00:14]} e6 {[%emt 0:00:24]} 6. Nf3 {[%emt 0:01:19]} b6 {[%emt 0:00:11]} 7. Bc4 {[%emt 0:02:24]} Bb7 {[%emt 0:00:14]} 8. O-O {[%emt 0:00:49]} Be7 {[%emt 0:00:07]} 9. Nbd2 {[%emt 0:03:04]} O-O {[%emt 0:00:31]} 10. Re1 {[%emt 0:03:19]} d6 {[%emt 0:03:15]} 11. Ne4 {[%emt 0:04:41]} dxe5 {[%emt 0:01:12]} 12. dxe5 {[%emt 0:01:48]} Na6 {[%emt 0:03:34]} 13. Qe2 {[%emt 0:10:45]} Nc5 {[%emt 0:02:19]} 14. Nxc5 {[%emt 0:10:21]} Bxc5 {[%emt 0:00:21]} 15. Bg5 {[%emt 0:00:57]} Qb8 {[%emt 0:13:03]} 16. Rab1 {[%emt 0:04:40]} a5 {[%emt 0:13:34]} 17. a3 {[%emt 0:01:59]} a4 {[%emt 0:03:26]} 18. Nd2 {[%emt 0:01:46]} h6 {[%emt 0:04:55]} 19. Bh4 {[%emt 0:04:06]} Nf4 {[%emt 0:03:32]} 20. Qg4 {[%emt 0:00:49]} Ng6 {[%emt 0:04:30]} 21. Bg3 {[%emt 0:01:09]} Qd8 {[%emt 0:02:09]} 22. Rbd1 {[%emt 0:01:07]} Qd4 {[%emt 0:05:04]} 23. Bxe6 {[%emt 0:06:16]} fxe6 {[%emt 0:03:42]} 24. Qxg6 {[%emt 0:00:16]} Bd5 {[%emt 0:01:08]} 25. Ne4 {[%emt 0:01:58]} Qxb2 {[%emt 0:01:28]} 26. Nf6+ {[%emt 0:00:34]} Rxf6 {[%emt 0:00:17]} 27. exf6 {[%emt 0:00:04]} Qxf6 {[%emt 0:00:25]} 28. Qxf6 {[%emt 0:02:36]} gxf6 {[%emt 0:00:10]} 29. Rd3 {[%emt 0:00:33]} Rc8 {[%emt 0:00:36]} 30. Bf4 {[%emt 0:01:01]} Kh7 {[%emt 0:01:03]} 31. Rc1 {[%emt 0:01:38]} Rg8 {[%emt 0:01:31]} 32. Rg3 {[%emt 0:00:43]} Rxg3 {[%emt 0:00:17]} 33. hxg3 {[%emt 0:00:27]} Bb3 {[%emt 0:00:32]} 34. Be3 {[%emt 0:01:28]} Bxa3 {[%emt 0:00:45]} 35. Rc7+ {[%emt 0:00:05]} Kg6 {[%emt 0:00:20]} 36. Bxb6 {[%emt 0:00:09]} Bb2 {[%emt 0:00:24]} 37. Bc5 {[%emt 0:00:44]} Kf5 {[%emt 0:00:51]} 38. Kf1 {[%emt 0:00:37]} Bc4+ {[%emt 0:01:34]} 39. Ke1 {[%emt 0:00:16]} Bc3+ {[%emt 0:00:11]} 40. Kd1 {[%emt 0:00:12]} Bb3+ {[%emt 0:00:11]} 41. Kc1 {[%emt 0:15:15]} Be1 {[%emt 0:16:04]} 42. Rh7 {[%emt 0:00:54]} Kg6 {[%emt 0:00:29]} 43. Rh8 {[%emt 0:00:14]} Bd5 {[%emt 0:00:40]} 44. Be3 {[%emt 0:00:22]} Bxg2 {[%emt 0:00:58]} 45. Rxh6+ {[%emt 0:00:02]} Kg7 {[%emt 0:00:24]} 46. Rh2 {[%emt 0:00:56]} Bd5 {[%emt 0:01:19]} 47. Kb2 {[%emt 0:00:44]} Bb3 {[%emt 0:00:31]} 48. Bd4 {[%emt 0:02:01]} Kg6 {[%emt 0:01:11]} 49. Bc3 {[%emt 0:00:06]} Bxc3+ {[%emt 0:00:15]} 50. Kxc3 {[%emt 0:00:04]} Kg5 {[%emt 0:00:31]} 51. f3 {[%emt 0:00:40]} Bd5 {[%emt 0:00:26]} 52. Rf2 {[%emt 0:00:15]} f5 {[%emt 0:01:04]} 53. Kd4 {[%emt 0:02:17]} f4 {[%emt 0:01:22]} 54. gxf4+ {[%emt 0:15:50]} Kxf4 55. Rf1 Bxf3 56. Ra1 Bc6 57. Re1 Bd5 58. Rxe6 {normal} 1/2-1/2

[Event "GER-ch Youth U10 2019"]
[Site "Willingen"]
[Date "2019.06.11"]
[Round "5.6"]
[White "Huber, Benedikt"]
[Black "Ermitsch, Magnus"]
[Result "1/2-1/2"]
[ECO "B23"]
[WhiteElo "1441"]
[BlackElo "1843"]
[Annotator "NA"]
[PlyCount "75"]
[EventDate "2019.06.07"]
[EventType "swiss"]
[EventRounds "11"]
[EventCountry "GER"]
[SourceTitle "playchess.com"]
[Source "ChessBase"]
[SourceQuality "1"]
[TimeControl "40/4500+30:900+30"]

1. e4 {[%emt 0:00:00]} c5 {[%emt 0:00:03]} 2. Nc3 {[%emt 0:00:00]} e6 {[%emt 0:01:04]} 3. g3 {[%emt 0:00:00]} Nc6 {[%emt 0:01:27]} 4. Bg2 {[%emt 0:01:03]} a6 {[%emt 0:00:56]} 5. d3 {[%emt 0:01:01]} g6 {[%emt 0:01:27]} 6. Be3 {[%emt 0:01:38]} d6 {[%emt 0:02:00]} 7. Qd2 {[%emt 0:01:40]} Bg7 {[%emt 0:02:04]} 8. Nge2 {[%emt 0:02:10]} Nge7 {[%emt 0:04:59]} 9. Bh6 {[%emt 0:01:13]} O-O {[%emt 0:01:25]} 10. h4 {[%emt 0:01:48]} Ne5 {[%emt 0:13:13]} 11. f3 {[%emt 0:05:03]} b5 {[%emt 0:02:47]} 12. h5 {[%emt 0:01:53]} N7c6 {[%emt 0:18:45]} 13. hxg6 {[%emt 0:01:24]} hxg6 {[%emt 0:03:10]} 14. Bxg7 {[%emt 0:00:14]} Kxg7 {[%emt 0:00:08]} 15. Qh6+ {[%emt 0:03:05]} Kf6 {[%emt 0:00:08]} 16. f4 {[%emt 0:01:18]} Bb7 {[%emt 0:09:07]} 17. fxe5+ {[%emt 0:00:32]} dxe5 {[%emt 0:00:16]} 18. Qh4+ {[%emt 0:00:46]} Kg7 {[%emt 0:00:11]} 19. Qxd8 {[%emt 0:00:28]} Raxd8 {[%emt 0:00:16]} 20. a3 {[%emt 0:06:12]} Ne7 {[%emt 0:03:18]} 21. Kd2 {[%emt 0:02:15]} Nc6 {[%emt 0:02:32]} 22. Rh2 {[%emt 0:01:07]} c4 {[%emt 0:01:31]} 23. Rah1 {[%emt 0:03:57]} Na5 {[%emt 0:00:44]} 24. Nc1 {[%emt 0:02:54]} Bc6 {[%emt 0:04:34]} 25. Rh7+ {[%emt 0:01:20]} Kf6 {[%emt 0:00:08]} 26. Rf1+ {[%emt 0:02:26]} Ke7 {[%emt 0:00:16]} 27. g4 {[%emt 0:00:56]} Be8 {[%emt 0:02:06]} 28. g5 {[%emt 0:00:39]} Kd6 {[%emt 0:01:26]} 29. Rh6 {[%emt 0:03:36]} Rg8 {[%emt 0:00:10]} 30. N1a2 Kc5 {[%emt 0:02:38]} 31. Nb4 {[%emt 0:04:36]} Kb6 {[%emt 0:00:30]} 32. Rfh1 {[%emt 0:01:28]} cxd3 {[%emt 0:02:11]} 33. cxd3 {[%emt 0:08:21]} Nc4+ {[%emt 0:01:10]} 34. Kc1 {[%emt 0:00:40]} Ne3 {[%emt 0:00:35]} 35. Bf1 {[%emt 0:00:25]} a5 {[%emt 0:00:51]} 36. Nc2 {[%emt 0:00:59]} Nxf1 {[%emt 0:00:05]} 37. Rxf1 {[%emt 0:00:05]} Rxd3 {[%emt 0:00:37] normal} 38. Rhh1 {[%emt 0:02:40] normal} 1/2-1/2

[Event "GER-ch Youth U10 2019"]
[Site "Willingen"]
[Date "2019.06.11"]
[Round "5.7"]
[White "Scheerer, Julian"]
[Black "Malinowsky, Levi"]
[Result "1/2-1/2"]
[ECO "C54"]
[WhiteElo "1395"]
[BlackElo "1400"]
[Annotator "NA"]
[PlyCount "64"]
[EventDate "2019.06.07"]
[EventType "swiss"]
[EventRounds "11"]
[EventCountry "GER"]
[SourceTitle "playchess.com"]
[Source "ChessBase"]
[SourceQuality "1"]
[TimeControl "40/4500+30:900+30"]

1. e4 e5 {[%emt 0:00:06]} 2. Nf3 {[%emt 0:00:00]} Nc6 {[%emt 0:00:33]} 3. Bc4 {[%emt 0:00:17]} Bc5 {[%emt 0:01:07]} 4. c3 {[%emt 0:00:22]} Nf6 {[%emt 0:01:04]} 5. d4 {[%emt 0:00:46]} exd4 {[%emt 0:00:12]} 6. cxd4 {[%emt 0:00:16]} Bb4+ {[%emt 0:00:21]} 7. Bd2 {[%emt 0:00:34]} Bxd2+ {[%emt 0:00:26]} 8. Nbxd2 {[%emt 0:00:24]} d5 {[%emt 0:01:11]} 9. exd5 {[%emt 0:00:45]} Nxd5 {[%emt 0:00:11]} 10. O-O {[%emt 0:01:08]} O-O {[%emt 0:01:09]} 11. Ne5 {[%emt 0:01:52]} Nxe5 {[%emt 0:04:40]} 12. dxe5 {[%emt 0:01:48]} Nb6 {[%emt 0:03:06]} 13. Bb3 {[%emt 0:02:51]} Bf5 {[%emt 0:03:51]} 14. Bc2 {[%emt 0:02:15]} Bxc2 {[%emt 0:00:28]} 15. Qxc2 {[%emt 0:00:16]} Qe7 {[%emt 0:01:40]} 16. Rfe1 {[%emt 0:01:10]} Rad8 {[%emt 0:04:21]} 17. Rad1 {[%emt 0:01:38]} Rd7 {[%emt 0:03:06]} 18. Nf3 {[%emt 0:01:50]} Rfd8 {[%emt 0:01:54]} 19. Rd2 {[%emt 0:02:27]} Rxd2 {[%emt 0:00:43]} 20. Nxd2 {[%emt 0:00:46]} Rd5 {[%emt 0:03:09]} 21. Nf3 {[%emt 0:01:09]} Qc5 {[%emt 0:03:45]} 22. Qe2 {[%emt 0:04:05]} Qc4 {[%emt 0:04:37]} 23. Qe3 {[%emt 0:02:49]} Rd3 {[%emt 0:07:58]} 24. Qe2 {[%emt 0:01:17]} Rd8 {[%emt 0:01:25]} 25. Rd1 {[%emt 0:01:19]} Rxd1+ {[%emt 0:00:21]} 26. Qxd1 {[%emt 0:00:27]} Qd5 {[%emt 0:01:01]} 27. Qd4 {[%emt 0:01:53]} c5 {[%emt 0:02:30]} 28. Qxd5 {[%emt 0:00:42]} Nxd5 {[%emt 0:00:04]} 29. Nd2 {[%emt 0:02:49]} Nb4 {[%emt 0:02:16]} 30. a4 {[%emt 0:01:25]} Nd3 {[%emt 0:00:30]} 31. Nc4 {[%emt 0:00:11] normal} a6 {[%emt 0:01:59]} 32. a5 {[%emt 0:00:39] normal} Kf8 {[%emt 0:02:47] normal} 1/2-1/2

[Event "GER-ch Youth U10 2019"]
[Site "Willingen"]
[Date "2019.06.11"]
[Round "5.8"]
[White "Klaska, Philipp Leon"]
[Black "Zobel, Christian"]
[Result "1/2-1/2"]
[ECO "C54"]
[WhiteElo "1444"]
[BlackElo "1404"]
[Annotator "NA"]
[PlyCount "47"]
[EventDate "2019.06.07"]
[EventType "swiss"]
[EventRounds "11"]
[EventCountry "GER"]
[SourceTitle "playchess.com"]
[Source "ChessBase"]
[SourceQuality "1"]
[TimeControl "40/4500+30:900+30"]

1. e4 {[%emt 0:00:00]} e5 {[%emt 0:00:08]} 2. Nf3 {[%emt 0:00:00]} Nc6 {[%emt 0:00:07]} 3. Bc4 {[%emt 0:00:00]} Bc5 {[%emt 0:00:18]} 4. c3 {[%emt 0:00:00]} Nf6 {[%emt 0:00:09]} 5. d4 {[%emt 0:00:00]} exd4 {[%emt 0:00:08]} 6. cxd4 {[%emt 0:00:02]} Bb4+ {[%emt 0:00:04]} 7. Bd2 {[%emt 0:00:12]} Bxd2+ {[%emt 0:00:11]} 8. Nbxd2 {[%emt 0:00:07]} d5 {[%emt 0:00:03]} 9. exd5 {[%emt 0:00:13]} Nxd5 {[%emt 0:00:07]} 10. O-O {[%emt 0:00:08]} O-O {[%emt 0:01:15]} 11. Rc1 {[%emt 0:00:09]} Bg4 {[%emt 0:00:57]} 12. h3 {[%emt 0:01:25]} Bh5 {[%emt 0:01:31]} 13. Bxd5 {[%emt 0:06:23]} Qxd5 {[%emt 0:00:25]} 14. Rc5 {[%emt 0:02:11]} Bxf3 {[%emt 0:00:35]} 15. Rxd5 {[%emt 0:05:18]} Bxd1 {[%emt 0:00:16]} 16. Rxd1 {[%emt 0:00:46]} Rad8 {[%emt 0:06:08]} 17. Rxd8 {[%emt 0:01:37]} Rxd8 {[%emt 0:00:12]} 18. Nf3 {[%emt 0:01:11]} f6 {[%emt 0:04:45]} 19. Kf1 {[%emt 0:02:00]} Kf7 {[%emt 0:03:25]} 20. Ke2 {[%emt 0:03:09]} Nb4 {[%emt 0:11:23]} 21. a3 {[%emt 0:04:37]} Re8+ {[%emt 0:03:56]} 22. Kd2 {[%emt 0:03:46]} Nd5 {[%emt 0:01:31]} 23. g3 {[%emt 0:02:05]} Re6 {[%emt 0:04:28] normal} 24. Kd3 {[%emt 0:02:21] normal} 1/2-1/2

[Event "GER-ch Youth U10 2019"]
[Site "Willingen"]
[Date "2019.06.11"]
[Round "5.9"]
[White "Dordevic, Tom"]
[Black "Haubold, Sebastian Marcel"]
[Result "1/2-1/2"]
[ECO "B21"]
[WhiteElo "1158"]
[BlackElo "1506"]
[Annotator "NA"]
[PlyCount "120"]
[EventDate "2019.06.07"]
[EventType "swiss"]
[EventRounds "11"]
[EventCountry "GER"]
[SourceTitle "playchess.com"]
[Source "ChessBase"]
[SourceQuality "1"]
[TimeControl "40/4500+30:900+30"]

1. e4 {[%emt 0:00:00]} c5 {[%emt 0:00:00]} 2. d4 {[%emt 0:00:00]} cxd4 {[%emt 0:00:03]} 3. c3 Nf6 {[%emt 0:00:51]} 4. e5 {[%emt 0:01:29]} Nd5 {[%emt 0:00:56]} 5. Nf3 {[%emt 0:01:33]} Nc6 {[%emt 0:01:55]} 6. cxd4 {[%emt 0:23:20]} d6 {[%emt 0:07:05]} 7. exd6 {[%emt 0:08:22]} Qxd6 {[%emt 0:03:45]} 8. Nc3 {[%emt 0:01:35]} Bg4 {[%emt 0:05:40]} 9. Be2 {[%emt 0:17:14]} e6 {[%emt 0:06:22]} 10. Bg5 {[%emt 0:04:39]} Qb4 {[%emt 0:08:07]} 11. Qd2 {[%emt 0:03:53]} h6 {[%emt 0:07:59]} 12. a3 {[%emt 0:03:22]} Qb6 {[%emt 0:04:50]} 13. Nxd5 {[%emt 0:01:00]} exd5 {[%emt 0:00:45]} 14. Qe3+ {[%emt 0:02:28]} Be6 {[%emt 0:00:43]} 15. Bf4 {[%emt 0:01:18]} Be7 {[%emt 0:02:48]} 16. O-O {[%emt 0:01:55]} Bf6 {[%emt 0:05:23]} 17. Rfd1 {[%emt 0:01:14]} O-O {[%emt 0:02:30]} 18. Be5 {[%emt 0:01:32]} Nxe5 {[%emt 0:00:58]} 19. Nxe5 {[%emt 0:00:11]} Rfe8 {[%emt 0:01:27]} 20. Qd2 {[%emt 0:01:46]} Bf5 {[%emt 0:00:55]} 21. Nf3 {[%emt 0:01:34]} Be4 {[%emt 0:01:31]} 22. Rac1 {[%emt 0:01:11]} Rac8 {[%emt 0:00:23]} 23. b4 {[%emt 0:01:40]} Bxf3 {[%emt 0:02:11]} 24. Bxf3 {[%emt 0:00:06]} Rxc1 {[%emt 0:00:12]} 25. Qxc1 {[%emt 0:00:27]} Bxd4 {[%emt 0:00:13]} 26. Qd2 {[%emt 0:01:41]} Qf6 {[%emt 0:02:12]} 27. h3 {[%emt 0:02:15]} Bb2 {[%emt 0:01:26]} 28. Qxd5 {[%emt 0:00:52]} Bxa3 {[%emt 0:00:55]} 29. Qxb7 {[%emt 0:00:38]} Qe7 {[%emt 0:00:10]} 30. Qxe7 {[%emt 0:01:36]} Rxe7 {[%emt 0:00:06]} 31. b5 {[%emt 0:00:19]} Bb4 {[%emt 0:00:51]} 32. Kf1 {[%emt 0:00:36]} Kf8 {[%emt 0:00:55]} 33. Bc6 {[%emt 0:00:15]} f6 {[%emt 0:02:02]} 34. Rd8+ {[%emt 0:00:09]} Kf7 {[%emt 0:00:10]} 35. Rd7 {[%emt 0:00:03]} Rxd7 {[%emt 0:00:08]} 36. Bxd7 {[%emt 0:00:05]} Ke7 {[%emt 0:00:08]} 37. Bc6 {[%emt 0:00:08]} Kd6 {[%emt 0:00:18]} 38. Be8 {[%emt 0:00:11]} Ke5 {[%emt 0:00:18]} 39. Bc6 {[%emt 0:00:48]} f5 {[%emt 0:00:16]} 40. Ke2 {[%emt 0:01:11]} g5 {[%emt 0:00:12]} 41. f3 {[%emt 0:16:44]} Kf4 {[%emt 0:15:26]} 42. Kf1 {[%emt 0:00:24]} Bc5 {[%emt 0:00:33]} 43. Bd5 {[%emt 0:00:24]} h5 {[%emt 0:00:28]} 44. Bc6 {[%emt 0:00:09]} g4 {[%emt 0:00:13]} 45. fxg4 {[%emt 0:00:18]} fxg4 {[%emt 0:00:13]} 46. hxg4 {[%emt 0:00:06]} hxg4 {[%emt 0:00:26]} 47. Bd5 {[%emt 0:00:22]} g3 {[%emt 0:00:25]} 48. Bc6 {[%emt 0:00:16]} Ke5 {[%emt 0:00:05]} 49. Bf3 {[%emt 0:00:10]} Bf2 {[%emt 0:00:11]} 50. Bc6 {[%emt 0:01:08]} Kd4 {[%emt 0:00:09]} 51. Be8 {[%emt 0:00:31]} Kc5 {[%emt 0:00:04]} 52. Bd7 {[%emt 0:00:23]} Kd6 {[%emt 0:00:14]} 53. Be8 {[%emt 0:00:10]} Kc7 {[%emt 0:00:18]} 54. Bg6 {[%emt 0:00:36]} Kb6 {[%emt 0:00:06]} 55. Bd3 {[%emt 0:00:10]} Kc5 {[%emt 0:00:35]} 56. Be2 {[%emt 0:00:14]} Kb4 {[%emt 0:00:07]} 57. Bd3 {[%emt 0:00:11]} Kc3 {[%emt 0:00:07]} 58. Be2 {[%emt 0:00:13]} Kd2 {[%emt 0:00:10]} 59. Bc4 {[%emt 0:00:21]} Kd1 {[%emt 0:00:46]} 60. Be2+ {[%emt 0:00:24]} Kc2 {normal} 1/2-1/2